Workbook

Sheet Instructions
B1: Smoking Cessation Cost Comparison Tool
C2: A common misperception is that nicotine replacement therapy (NRT) is cost prohibitive versus the cost of cigarettes. This tool can help patients understand the relative cost of NRT in comparison to the money they are spending on cigarettes. Note: For smokers who average less than 5, or more than 25 cigarettes per day, the cost benefit of NRT may need to be calculated over a shorter/longer period of time.
D4: How to use this tool
E6: Step 1. Fill in Cost of Cigarettes section based on patients habits.
E8: Step 2. Review and Discuss Dosing Guide to determine NRT plan
E10: Step 3. Fill in Cost of NRT section based on patient preferences
E11: View and print NRT Cost Comparison results
C14: The development of this tool has been sponsored by NICORETTE® Canada. The tool is current as of January 25th, 2022. All pricing information sourced July 2021.
C15: The content, including all cost/pricing estimates, is intended for educational and informational purposes only, and is not to be modified in any way. The user shall be fully responsible for any consequences resulting from use or reliance on the Content. The Content is obtained from a number of sources and is provided without charge on an “as is” basis without any representation, warranty or condition, whether express or implied, statutory or otherwise, as to quality, accuracy, completeness, timeliness, legality, currency, reliability, efficacy or fitness for a particular purpose. The Content is for information purposes only and not intended to be a substitute for professional medical or healthcare advice, diagnosis or treatment. The user should always seek advice from a professional healthcare provider regarding a medical condition. Johnson & Johnson Inc. (“JJI”), nor any of its directors, officers, agents, employees or affiliates shall be responsible for any direct, indirect, incidental, special, consequential or punitive damages, however caused, arising out of or in connection with the use or reliance on the Content, including any loss of use, personal injury, sickness or disease or any other loss, whether the action is in contract, tort (including negligence) incurred as a result of: (i) the use or inability to use the Smoking Cessation Cost Comparison Tool (ii) any inaccuracy, incompleteness or misinformation contained in the Content or (iii) reliance upon or acting upon any information found in the Content.
C16: Always read and follow the label
C17: © Johnson & Johnson Inc. 2022

Sheet Step 1 Smoking Costs
A1: Smoking Cessation Cost Comparison Tool
B4: Step 1: Cost of Cigarettes
B6: Please fill in all light blue cells with patient information
B8: Number of cigarettes smoked per day
B9: Cost per pack(s)/carton of cigarettes (tax included)
C10: Patient unsure of costs | D10: =IF(D9="",VLOOKUP(C10,Information!A2:C13,2,FALSE),D9) -> 0 | E10: *
B11: Number of cigarettes purchased at a time
C14: Daily Expense | D14: =(D8/D11)*PRODUCT(1,D10) -> 
C15: Weekly Expense | D15: =(D8/D11)*PRODUCT(7,D10) -> 
C16: Monthly Expense | D16: =(D8/D11)*PRODUCT(30,D10) -> 
C17: Yearly Expense | D17: =(D8/D11)*PRODUCT(365,D10) -> 
C18: 5-year Expense | D18: =(D8/D11)*PRODUCT((365*5),D10) -> 
C19: 10-year Expense | D19: =(D8/D11)*PRODUCT((365*10),D10) -> 
C20: 20-year Expense | D20: =(D8/D11)*PRODUCT((365*20),D10) -> 
C21: 30-year Expense | D21: =(D8/D11)*PRODUCT((365*30),D10) -> 
C22: 40-year Expense | D22: =(D8/D11)*PRODUCT((365*40),D10) -> 
C23: 50-year Expense | D23: =(D8/D11)*PRODUCT(18250,D10) -> 
B26: *Pricing estimate based on cigarette prices sourced from the Greater Toronto Area July 2021.

Sheet Step 2 Dosing Guide
A1: Combination Therapy: Patch + Another Form of NRT
C3: Patch - Background nicotine substitution Maintains a constant, lower level of nicotine throughout the day. | I3: NRT - Fast relief for breakthrough craving Supplies additional levels of nicotine instead of a cigarette.
B5: Step 2: NICORETTE® and NICODERM® Combination Therapy Dosing Guide
B6: This dosing guide has been created to help you determine the NICORETTE® or NICODERM® (NRT) combination therapy products your patient might need while on their quit journey.
B7: Follow the steps below and select the products on the right as you determine which product is suitable for your patients needs.
A8: A) | B8: Choose your NICODERM® patch strength and use as directed.
B9: Step 1: Recap
B10: Number of cigarettes smoked per day | C10: ='Step 1 Smoking Costs'!D8 -> 0
B11: Estimated mg of Nicotine per day | C11: =C10*1 -> 0 | D11: Dosing Tip: 1 Cigarette Delivers 1-2mg of Nicotine
B12: * based on 1mg per cigarette
B13: # of weeks for NRT Quit Plan based on cigarettes per day | C13: =IF(C10<=10,"9","11") -> 9 | D13: For the purpose of this tool 9 weeks is used as the base. Each patient is unique. Adjust NRT Dosing/length of time based on smoker habits and symptoms/side effects reported.
B15: 10 or more cigarettes per day | G15: Weeks 1-6 | H15: Weeks 7 & 8 | I15: Weeks 9 & 10 | J15: Weeks 11+ | L15: Select | M15: # of Weeks | N15: Approx # required for quit journey
B16: Less than 10 cigarettes per day | H16: Weeks 1-6 | I16: Weeks 7-8 | J16: Weeks 9+
B17: NICODERM® PATCH | F17: Use 1 patch daily | G17: Step 1 21mg | H17: Step 2 14mg | I17: Step 3 7mg | J17: It is important to complete treatment. If you feel you need to use Nicoderm® patch or combination Nicoderm® patch and NICORETTE® as needed therapy for longer than 6 months to keep from smoking, talk to your health care provider | M17: =IF(C10>10,"1-6 weeks",0) -> 0 | N17: 1 per day x # of weeks | O17: FALSE
F18: Use 1 patch daily | H18: Step 2 14mg | I18: Step 3 7mg | J18: It is important to complete treatment. If you feel you need to use Nicoderm® patch or combination Nicoderm® patch and NICORETTE® as needed therapy for longer than 6 months to keep from smoking, talk to your health care provider | M18: =IF(C10>10,"2 weeks","1-6 weeks") -> 1-6 weeks | N18: 1 per day x # of weeks | O18: FALSE
M19: =IF(C10>10,"2+ weeks","2 weeks") -> 2 weeks | N19: 1 per day x # of weeks | O19: FALSE
A21: B) | B21: Choose your NICORETTE® product of choice and use as directed.
B22: See product inserts for more information.
B23: Format | C23: Characteristics/Attributes | D23: Flavour | E23: Strength | F23: Daily Maximum | G23: Week 1 - 6 | H23: Week 7 & 8 | I23: Weeks 9 &10 | J23: Weeks 11+ | L23: Select | M23: Recommended min/max | N23: Approx # per day | P23: Approx # required for quit journey | Q23: *Each patient will be unique and NRT usage will vary
B24: NICORETTE® GUM | C24: I want something that tastes great | D24: Fresh Fruit ULTRA fresh mint Extreme Chill® Spearmint Cinnamon | E24: 2mg For combination nicotine replacement therapy, use NICORETTE® 2mg gum if your time to first cigarette is >30 min after waking. | F24: 20 Pieces | G24: 1 piece of gum every 1 to 2 hours as needed | H24: 1 piece of gum every 1 to 2 hours as needed | I24: 1 piece of gum every 1 to 2 hours as needed | J24: NICORETTE® oral formats can be used as required after the discontinuation of NICODERM® patch | M24: Min: 4-5 pieces per day Max: 20 pieces per day | N24: 10 | O24: FALSE | P24: =N24*$C$13 -> 90
E25: 4mg If the time to your first cigarette is <30 min after waking use NICORETTE® 4mg gum. | M25: Min: 4-5 pieces per day Max: 20 pieces per day | N25: 10 | O25: FALSE | P25: =N25*$C$13 -> 90
B26: NICORETTE® LOZENGE | C26: I want something that tastes great, is discreet and is suitable for those with dental work/dentures. | D26: Fresh Fruit Mint | E26: 2mg For combination nicotine replacement therapy, use NICORETTE® 2mg lozenge if your time to first cigarette is >30 min after waking. | F26: 15 Lozenges | G26: 1 lozenge every 1 to 2 hours as needed | H26: 1 lozenge every 1 to 2 hours as needed | I26: 1 lozenge every 1 to 2 hours as needed | J26: NICORETTE® oral formats can be used as required after the discontinuation of NICODERM® patch | M26: Min: 4-5 pieces per day Max: 15 pieces per day | N26: 4 | O26: FALSE | P26: 36
E27: 4mg If the time to your first cigarette is <30 min after waking use NICORETTE® 4mg lozenge. | M27: Min: 4-5 pieces per day Max: 15 pieces per day | N27: 4 | O27: FALSE | P27: 36
B28: NICORETTE® INHALER | C28: I want something that satisfies the hand-to-mouth craving and keeps my hands busy. | D28: Menthol | E28: 1-2 mg delivered per 5-10 minute use | F28: 12 Cartridges | G28: Use as needed. 1 cartridge = 20 minutes of puffing | H28: Use as needed. 1 cartridge = 20 minutes of puffing | I28: Use as needed. 1 cartridge = 20 minutes of puffing | J28: NICORETTE® oral formats can be used as required after the discontinuation of NICODERM® patch | M28: 12 Cartridges per day | N28: 2 | O28: FALSE | P28: 18
B29: NICORETTE® QuickMist® and QuickMist® SmartTrackTM Spray | C29: I want something that starts working in 30 seconds and is discreet. SmartTrackTM enabled QuickMist® allows users to tap and track their use with their mobile phone using the NICORETTE® Stop Smoking APP. | D29: Fresh Mint Cool Berry* *QuickMist® Only | E29: 1mg nicotine per spray | F29: 64 Sprays Per Day (~150 sprays per container) | G29: 1 spray every 1 to 2 hours as needed | H29: 1 spray every 1 to 2 hours as needed | I29: 1 spray every 1 to 2 hours as needed | J29: NICORETTE® oral formats can be used as required after the discontinuation of NICODERM® patch | M29: min: 1 spray every 1-2 hours Max: 64 sprays per day | N29: 1 | O29: FALSE | P29: 9

Sheet Step 3 Cost of NRT
A1: Smoking Cessation Cost Comparison Tool
B4: Step 3: Cost of Nicotine Replacement Therapy (NRT)
B5: Based on information below from Steps 1 &2 select store preference and number of boxes required in table below. If you expect your patient to use more than 12 weeks of therapy please note the cost of NRT will only be displayed within a 3 month window on the chart to the right. Cost totals will be correct to the information entered.
B6: Information from Steps 1 & 2 | D6: Approx # of product required
B7: Number of Cigarettes per day | C7: ='Step 1 Smoking Costs'!D8 -> 0
B8: NICODERM® Patch Step 1 - 21 mg | C8: =IF('Step 2 Dosing Guide'!O17=TRUE,"Selected","Not Selected") -> Not Selected | D8: =IF(C8="Selected",'Step 2 Dosing Guide'!N17,"0") -> 0
B9: NICODERM® Patch Step 2 - 14mg | C9: =IF('Step 2 Dosing Guide'!O18=TRUE,"Selected","Not Selected") -> Not Selected | D9: =IF(C9="Selected",'Step 2 Dosing Guide'!N18,"0") -> 0
B10: NICODERM® Patch Step 3 - 7mg | C10: =IF('Step 2 Dosing Guide'!O19=TRUE,"Selected","Not Selected") -> Not Selected | D10: =IF(C10="Selected",'Step 2 Dosing Guide'!N19,"0") -> 0
B11: NICORETTE® Gum - 2mg | C11: =IF('Step 2 Dosing Guide'!O24=TRUE,"2mg Selected", "Not Selected") -> Not Selected | D11: =IF(C11="2mg Selected", 'Step 2 Dosing Guide'!P24,"") -> 
B12: NICORETTE® Gum 4mg | C12: =IF('Step 2 Dosing Guide'!O25=TRUE,"4mg Selected", "Not Selected") -> Not Selected | D12: =IF(C12="4mg Selected", 'Step 2 Dosing Guide'!P25,"") -> 
B13: NICORETTE® Lozenge - 2mg | C13: =IF('Step 2 Dosing Guide'!O26=TRUE,"2mg Selected", "Not Selected") -> Not Selected | D13: =IF(C13="2mg Selected", 'Step 2 Dosing Guide'!P26,"") -> 
B14: NICORETTE® Lozenge - 4mg | C14: =IF('Step 2 Dosing Guide'!O27=TRUE,"4mg Selected", "Not Selected") -> Not Selected | D14: =IF(C14="4mg Selected", 'Step 2 Dosing Guide'!P27,"") -> 
B15: NICORETTE® Inhaler | C15: =IF('Step 2 Dosing Guide'!O28=TRUE,"Selected", "Not Selected") -> Not Selected | D15: =IF(C15="Selected", 'Step 2 Dosing Guide'!P28,"") -> 
B16: NICORETTE® QuickMist® and QuickMist® SmartTrackTM Spray | C16: =IF('Step 2 Dosing Guide'!O29=TRUE,"Selected", "Not Selected") -> Not Selected | D16: =IF(C16="Selected", 'Step 2 Dosing Guide'!P29,"") -> 
B19: Type of NRT | C19: Store of Choice | D19: Price Per Box | E19: Price Per Unit | G19: # of Boxes Used | H19: Total
B21: Nicoderm® Step 1 21mg Patch (21 patches*) | C21: Costco | D21: =VLOOKUP(C21,Information!H19:I20,2,FALSE) -> 67.99 | E21: =D21/21 -> 3.237619048 | H21: =D21*G21 -> 0
B22: Nicoderm® Step 1 21mg Patch (14 patches) | C22: Click here for drop-down options | D22: =VLOOKUP(C22,Information!H2:I14,2,FALSE) -> 0 | E22: =D22/14 -> 0 | H22: =D22*G22 -> 0
B23: Nicoderm® Step 1 21mg Patch (7 patches) | C23: Click here for drop-down options | D23: =VLOOKUP(C23,Information!K2:L14,2,FALSE) -> 0 | E23: =D23/7 -> 0 | H23: =D23*G23 -> 0
B24: Nicoderm® Step 2 14mg Patch (7 patches) | C24: Loblaws | D24: =VLOOKUP(C24,Information!N2:O14,2,FALSE) -> 31.99 | E24: =D24/7 -> 4.57 | H24: =PRODUCT(D24,G24) -> 31.99
B25: Nicoderm® Step 3 7mg Patch (7 patches) | C25: Loblaws | D25: =VLOOKUP(C25,Information!Q2:R13,2,FALSE) -> 31.99 | E25: 4.57 | H25: =PRODUCT(D25,G25) -> 31.99
B27: Nicorette® Gum 2mg (315 pieces*) | C27: Costco | D27: =VLOOKUP(C27,Information!W19:X20,2,FALSE) -> 79.99 | E27: =D27/315 -> 0.2539365079 | H27: =PRODUCT(D27,G27) -> 79.99
B28: Nicorette® Gum 2mg (105 pieces) | C28: Click here for drop-down options | D28: =VLOOKUP(C28,Information!W2:X14,2,FALSE) -> 0 | E28: =D28/105 -> 0 | H28: =PRODUCT(D28,G28) -> 0
B29: Nicorette® Gum 4mg (315 pieces*) | C29: Click here for drop-down options | D29: =VLOOKUP(C29,Information!T19:U20,2,FALSE) -> 0 | E29: =D29/315 -> 0 | H29: =PRODUCT(D29,G29) -> 0
B30: Nicorette® Gum 4mg (105 pieces) | C30: Amazon | D30: =VLOOKUP(C30,Information!T2:U14,2,FALSE) -> 33.97 | E30: =D30/105 -> 0.3235238095 | H30: =PRODUCT(D30,G30) -> 33.97
B32: Nicorette® Lozenge 2mg (88 pieces) | C32: Click here for drop-down options | D32: =VLOOKUP(C32,Information!AC2:AD9,2,FALSE) -> 0 | E32: =D32/88 -> 0 | H32: =PRODUCT(D32,G32) -> 0
B33: Nicorette® Lozenge 4mg (88 pieces) | C33: Click here for drop-down options | D33: =VLOOKUP(C33,Information!Z2:AA9,2,FALSE) -> 0 | E33: 0 | H33: =PRODUCT(D33,G33) -> 0
B35: Nicorette® Inhaler 4mg (42 cartridges) | C35: Loblaws | D35: =VLOOKUP(C35,Information!AF2:AG14,2,FALSE) -> 37.99 | E35: =D35/42 -> 0.9045238095 | H35: =PRODUCT(D35,G35) -> 37.99
B37: Nicorette® QuickMist® Spray 1mg (150 sprays) | C37: Click here for drop-down options | D37: =VLOOKUP(C37,Information!AI2:AJ14,2,FALSE) -> 0 | E37: =D37/150 -> 0 | H37: =PRODUCT(D37,G37) -> 0
B38: Nicorette® QuickMist® Spray 1mg (450 sprays*) | C38: Click here for drop-down options | D38: =VLOOKUP(C38,Information!AI19:AJ20,2,FALSE) -> 0 | E38: =D38/450 -> 0 | H38: =PRODUCT(D38,G38) -> 0
B40: * Smaller sizes are available. Buying in volume is more cost effective over time. Coupons are not redeemable at Costco or Amazon.
D41: Tax | F41: NRT Expense: | H41: =SUM(H21:H37) -> 215.93
B42: Select your province to adjust tax % | C42: Ontario | D42: =VLOOKUP(C42,Information!A46:F58,6, FALSE) -> 0.13 | F42: Tax: | H42: =VLOOKUP(C42,Information!A46:F58,6, FALSE)*H41 -> 28.0709
F45: Total Cost of NRT with Tax | H45: =SUM(H41:H42) -> 244.0009
B48: NRT prices sourced online or in-store in the Greater Toronto Area July 2021.

Sheet Results
A1: Smoking Cessation Cost Comparison Tool
B2: Results: Cost of Cigarettes
B7: Daily Expense | C7: ='Step 1 Smoking Costs'!D14 -> 
B8: Weekly Expense | C8: ='Step 1 Smoking Costs'!D15 -> 
B9: Monthly Expense | C9: ='Step 1 Smoking Costs'!D16 -> 
B10: Yearly Expense | C10: ='Step 1 Smoking Costs'!D17 -> 
B11: 5-year Expense | C11: ='Step 1 Smoking Costs'!D18 -> 
B12: 10-year Expense | C12: ='Step 1 Smoking Costs'!D19 -> 
B13: 20-year Expense | C13: ='Step 1 Smoking Costs'!D20 -> 
B14: 30-year Expense | C14: ='Step 1 Smoking Costs'!D21 -> 
B15: 40-year Expense | C15: ='Step 1 Smoking Costs'!D22 -> 
B16: 50-year Expense | C16: ='Step 1 Smoking Costs'!D23 -> 
B20: Results: Cost of Nicotine Replacement Therapy (NRT) vs Smoking
B21: NRT Selections: | D21: HCP Notes
B22: NICODERM® Patch Step 1 - 21 mg | C22: =IF('Step 2 Dosing Guide'!O17=TRUE,"Selected","Not Selected") -> Not Selected
B23: NICODERM® Patch Step 2 - 14mg | C23: =IF('Step 2 Dosing Guide'!O18=TRUE,"Selected","Not Selected") -> Not Selected
B24: NICODERM® Patch Step 3 - 7mg | C24: =IF('Step 2 Dosing Guide'!O19=TRUE,"Selected","Not Selected") -> Not Selected
B25: NICORETTE® Gum - 2mg | C25: =IF('Step 2 Dosing Guide'!O24=TRUE,"2mg Selected", "Not Selected") -> Not Selected
B26: NICORETTE® Gum 4mg | C26: =IF('Step 2 Dosing Guide'!O25=TRUE,"4mg Selected", "Not Selected") -> Not Selected
B27: NICORETTE® Lozenge - 2mg | C27: =IF('Step 2 Dosing Guide'!O26=TRUE,"2mg Selected", "Not Selected") -> Not Selected
B28: NICORETTE® Lozenge - 4mg | C28: =IF('Step 2 Dosing Guide'!O27=TRUE,"4mg Selected", "Not Selected") -> Not Selected
B29: NICORETTE® Inhaler | C29: =IF('Step 2 Dosing Guide'!O28=TRUE,"Selected", "Not Selected") -> Not Selected
B30: NICORETTE® QuickMist® and QuickMist® SmartTrackTM Spray | C30: =IF('Step 2 Dosing Guide'!O29=TRUE,"Selected", "Not Selected") -> Not Selected
B65: Other Potential Sources of Savings
B66: Recommend reducing caffeine use by 50% when quitting: | H66: J&J -$5 off coupons per purchase
B67: Current amount spent on caffeine per day | C67: 0 | K67: # of boxes purchased | L67: =Information!A40 -> 0
B68: Reduced by 50% | C68: =C67/2 -> 0 | K68: Total Savings | L68: =L67*5 -> 0
K69: *$5 coupon is exempt at Costco and Amazon
B70: One Month | C70: =C68*30 -> 0
B71: 6 Months | C71: =C70*6 -> 0
B72: 1 Year | C72: =C71*2 -> 0
H73: Other areas that can help you save money on your Quit Journey
B74: Pack a lunch for work daily: | H74: 20% off Seniors Days at participating retailers
B75: Assumes $10 per day/5 days for lunch | H75: Watch for flyers/sales!
B76: One Month | C76: =200 -> 200 | H76: Bulk buy (14 or 21 packs- Costco/Amazon)
B77: 6 Months | C77: =C76*6 -> 1200 | H77: Loyalty Point Programs
B78: 1 Year | C78: =C77*2 -> 2400
B79: Time Savings
B80: Time spent smoking a cigarette is 6min (on average) | H80: Other areas that can help you save time on your Quit Journey
B81: min/day | C81: ='Step 1 Smoking Costs'!D8*6 -> 0 | H81: Gas/travel to purchase cigarettes
B82: Hours per day | C82: =C81/60 -> 0 | D82: 2 Hours to watch a movie with family | H82: Hourly rate of time it takes to purchase cigarettes
B83: Days per month | C83: =C82*30/24 -> 0 | D83: 60 hours = weekend getaway | H83: Time to move outside to smoke
B84: Days in 6 months | C84: =C83*6 -> 0 | D84: 14 days = 2 week vacation | H84: Activities missed due to smoking
B85: Days in 1 year | C85: =C84*2 -> 0 | D85: 30 days to learn a new language/skill
B86: Days in 10 years | C86: =C84*10 -> 0
B87: References:
B88: Results calculated based on cigarette and NRT costs sourced online and in-store in the Greater Toronto Area July 2021 (excluding cigarette costs supplied by patient)
B90: The development of this tool has been sponsored by NICORETTE® Canada. The tool is current as of January 25th, 2022. All pricing information sourced July 2021. The content, including all cost/pricing estimates, is intended for educational and informational purposes only, and is not to be modified in any way. The user shall be fully responsible for any consequences resulting from use or reliance on the Content. The Content is obtained from a number of sources and is provided without charge on an “as is” basis without any representation, warranty or condition, whether express or implied, statutory or otherwise, as to quality, accuracy, completeness, timeliness, legality, currency, reliability, efficacy or fitness for a particular purpose. The Content is for information purposes only and not intended to be a substitute for professional medical or healthcare advice, diagnosis or treatment. The user should always seek advice from a professional healthcare provider regarding a medical condition. Johnson & Johnson Inc. (“JJI”), nor any of its directors, officers, agents, employees or affiliates shall be responsible for any direct, indirect, incidental, special, consequential or punitive damages, however caused, arising out of or in connection with the use or reliance on the Content, including any loss of use, personal injury, sickness or disease or any other loss, whether the action is in contract, tort (including negligence) incurred as a result of: (i) the use or inability to use the Smoking Cessation Cost Comparison Tool (ii) any inaccuracy, incompleteness or misinformation contained in the Content or (iii) reliance upon or acting upon any information found in the Content.
B91: Always read and follow the label

Sheet Product Offering
A1: Smoking Cessation Cost Comparison Tool
G5: How to use videos
C6: NICODERM® Patch
C9: Format | D9: Characteristics/Attributes | E9: Flavour | F9: Strength | G9: Daily Maximum | H9: How to use videos
C10: NICORETTE® GUM | D10: I want something that tastes great | E10: Fresh Fruit ULTRA fresh mint Extreme Chill® Spearmint Cinnamon | F10: 2mg For combination nicotine replacement therapy, use NICORETTE® 2mg gum if your time to first cigarette is >30 min after waking. | G10: 20 Pieces
F11: 4mg If the time to your first cigarette is <30 min after waking use NICORETTE® 4mg gum.
C12: NICORETTE® LOZENGE | D12: I want something that tastes great, is discreet and is suitable for those with dental work/dentures. | E12: Fresh Fruit Mint | F12: 2mg For combination nicotine replacement therapy, use NICORETTE® 2mg lozenge if your time to first cigarette is >30 min after waking. | G12: 15 Lozenges
F13: 4mg If the time to your first cigarette is <30 min after waking use NICORETTE® 4mg lozenge.
C14: NICORETTE® INHALER | D14: I want something that satisfies the hand-to-mouth craving and keeps my hands busy. | E14: Menthol | F14: 1-2 mg delivered per 5-10 minute use | G14: 12 Cartridges
C15: NICORETTE® QuickMist® and QuickMist® SmartTrackTM Spray | D15: I want something that starts working in 30 seconds and is discreet. SmartTrackTM enabled QuickMist® allows users to tap and track their use with their mobile phone using the NICORETTE® Stop Smoking APP. | E15: Fresh Mint Cool Berry* *QuickMist® Only | F15: 1mg nicotine per spray | G15: 64 Sprays Per Day (~150 sprays per container) | H15: Learn More about the QuickMist® SmartTrackTM and Stop Smoking APP
E16: * Flavour order based on consumer preferences

Sheet Conversation Guide
A1: Smoking Cessation Cost Comparison Tool

Sheet Case Studies
A1: Smoking Cessation Cost Comparison Tool
B2: DIFFERENT QUITTERS WILL NEED DIFFERENT SUPPORT
B4: Case Study 1 | C4: Case Study 2
A5: Cigarettes Per Day | B5: 9 per day | C5: 20 per day
A6: Time to First Cigarette | B6: > 30 minutes of waking | C6: <30 Minutes of waking
A7: Background | B7: Female patient has been slowly reducing her cigarette use and is now only smoking 9 cigarettes per day down from 15. She is now ready to quit completely. She has been using the 2mg gum to reduce but has been stuck at 9 cigarettes for a number of weeks. | C7: Male high school science teacher is ready to quit smoking abruptly. He has tried unsuccessfully in the past. Has tried gum and lozenge in the past but unable to use during work hours. He is looking for something that works quickly and is discreet. He is motivated through tracking his progress.
A8: Recommendation | B8: Combination Nicotine Replacement Therapy Patch + Gum | C8: Combination Nicotine Replacement Therapy Patch + QuickMist SmartTrack
A9: Patch Recommendation | B9: Follow treatment recommendations for Patch <10 cigarettes per day | C9: Follow treatment recommendations for Patch >10 cigarettes per day
A10: NICORETTE Recommendation | B10: Follow treatment recommendations for 2 mg Gum (time to 1st cigarette >30 min of waking) | C10: Follow treatment recommendations for QuickMist SmartTrack (up to 64 sprays per day)

Sheet FAQ
A1: Smoking Cessation Cost Comparison Tool FAQ
C3: Q1 | D3: Why should I tell my patients to reduce their caffeine intake when starting their cessation journey?
D4: Smoking increases the clearance of caffeine by about 50%. It is recommended advise your patient to reduce their caffeine intake by 50% to reduce the risk of caffeine related side effects like tremors and nausea.1 Switching to decaffeinated versions can also help. 1.University of California San Francisco. Smoking Cessation Leadership center. Drug Interactions with Tobacco Smoke.
C5: Q2 | D5: Is nicotine bad for you?
D6: Some people worry that using Nicotine Replacement Therapy (NRT) to help them quit will be just as bad for their health as smoking cigarettes. It’s not true. It’s cigarette smoke’s harmful chemicals, such as tar and carbon monoxide that are bad for you. Those ingredients can lead to health problems like heart disease and lung cancer. Nicotine causes you to become addicted to smoking, and using NRT lets you reduce the cigarettes you smoke. By reducing the amount of tobacco smoke you inhale, you also reduce the associated health risks. https://www.nicorette.ca/get-ready-to-quit/myths-about-quitting-smoking
C7: Q3 | D7: My patient only want to use willpower to quit.
D8: People who try quitting cold turkey have less chance of stopping smoking for good compared to people who use proven medications to reduce strong withdrawal symptoms. Quitting cold turkey can be especially hard because you’re dealing with the physical withdrawal symptoms at the same time as you’re kicking the habit. Instead, using medications like NICORETTE® have been clinically proven to double your chances of successfully quitting smoking versus willpower alone. https://www.nicorette.ca/get-ready-to-quit/myths-about-quitting-smoking
C9: Q4 | D9: What are the most common reasons for relapse when using NRT?
D10: There are many reasons why quit attempts fail but from a nicotine replacement therapy (NRT) perspective, inadequate dosing and incorrect use is often at the heart of it. The good news is that intense nicotine withdrawal symptoms, which are the number one reason for relapse, can be very successfully mitigated through appropriate NRT dosing, usage guidance, and adherence to an appropriate treatment timeline. This is where HCPs can play an important role - optimizing their patient medication regime.
C11: Q5 | D11: Are cigarettes really addictive?
D12: It may be surprising to many to learn that tobacco – not heroin, cocaine, or alcohol, has the highest chance of dependency after one single use1. This is due to how quickly and efficiently cigarettes deliver nicotine to the brain. Evidence suggests that 32% of smokers are dependent after just one cigarette.2,3 1.American Cancer Society, Why People Start Smoking and Why It’s Hard to Stop (2020) 2.Stahl’s Essential Psychopharmacology, 3rd ed. 2008; 3.https://journals.lww.com/cja/Citation/2014/12000/AN_EVOLVING_PERSPECTIVE_ON_SMOKING_CESSATION.14.aspx
C13: Q6 | D13: Tips to help patients trying to quit:
D14: Nicotine has not been shown to cause cancer1 In fact, its the toxins in cigarette smoke, rather than nicotine that cause chronic lung disease, heart disease and other disorders NRT safety profiles have been established in over 30 years of worldwide clinical use2. Nicotine can cause adverse effects as it is a stimulant(e.g. CV, CNS, respiratory) with the potential increase in risk of arrhythmias and high blood pressure. For a full list of warnings please read the product label. 1.U.S. Department of Health and Human Services (National Cancer Institute). Dispelling Myths About Nicotine Replacement Therapy. Available at: http://cancercontrol.cancer.gov/brp/tcrb/documents/MythsaboutNRTFactSheet.pdf. Accessed May 11, 2015. 2.Food and Drug Administration: Consumer Health Information. Nicotine Replacement Therapy Labels May Change. Available at: http://www.fda.gov/ForConsumers/ConsumerUpdates/ucm345087.htm. Accessed May 30, 2015.
C15: Q7 | D15: How can I motivate my patient to quit?
D16: Motivational approaches focus on providing: Appropriate empathy Non-judgmental advice Personalized feedback (reflected back to the patient) Positive reinforcement https://www.helpthemquit.ca/counselling/techniques
C17: Q8 | D17: What are some non-pharmacotherapy ways my patients can cope through strong cravings?
D18: Suggest the ‘4Ds’ to cope with nicotine withdrawal: Drink plenty of water – between 6 and 8 glasses per day, unless restricted by your physician. Delay for 5 to 7 minutes (particularly the first-morning cigarette). The urge should pass. Do something else. For example, do something with your hands (e.g., knit, Sudoku, games on your phone, etc.) or something relaxing (e.g., a calming bath). Deep breathing. This releases endorphins and may mimic the sensation of the first drag of a cigarette. https://www.helpthemquit.ca/patient-barriers/motivation
C19: Q9 | D19: My patient is concerned with the long-term safety of using NRT.
D20: Nicotine has not been shown to cause cancer1 In fact, its the toxins in cigarette smoke, rather than nicotine that cause chronic lung disease, heart disease and other disorders NRT safety profiles have been established in over 30 years of worldwide clinical use2. Nicotine can cause adverse effects as it is a stimulant(e.g. CV, CNS, respiratory) with the potential increase in risk of arrhythmias and high blood pressure. For a full list of warnings please read the product label. 1.U.S. Department of Health and Human Services (National Cancer Institute). Dispelling Myths About Nicotine Replacement Therapy. Available at: http://cancercontrol.cancer.gov/brp/tcrb/documents/MythsaboutNRTFactSheet.pdf. Accessed May 11, 2015. 2.Food and Drug Administration: Consumer Health Information. Nicotine Replacement Therapy Labels May Change. Available at: http://www.fda.gov/ForConsumers/ConsumerUpdates/ucm345087.htm. Accessed May 30, 2015.
C21: Q10 | D21: How do I titrate NRT?
D22: Titrating combination therapy: - Use starting NRT patch dose for 6 weeks and reduce dose by 7 mg every 2 weeks thereafter - If strong cravings return when attempting downward titration, consider remaining at the higher dose for longer - NRT can be used for 10-12 weeks or longer if necessary - Gum, lozenge, inhaler or oral spray can be used after discontinuation of patch, as required
C23: Q11 | D23: Who is a good candidate for combination therapy?
D24: 1) Patients who have used NRT in a previous quit attempt but relapsed 2) Patients who have had multiple failed quit attempts 3) Patients who feel they need something more than a patch or single NRT format 4) Patients who are experiencing breakthrough cravings or who have a high level of dependence
C25: Q12 | D25: Drug InterACTIONS with Tobacco Smoke
D26: Tobacco smoke impacts the metabolism of many drugs in the liver. Symptoms that arise with smoking cessation may, in fact, be due to drug interactions, and not nicotine replacement therapy. For more information visit: https://www.helpthemquit.ca/support-tools/for-healthcare-professionals
C27: Q13 | D27: How much nicotine is delivered in 1 cigarette?
D28: One cigarette delivers 1mg - 2mgs of nicotine.1 1. Viegas CA. Noncigarette forms. of tobacco use. J. Bras Pneumol 2008;34(12):1069-73.
C29: Q14 | D29: What are the most common nicotine withdrawal symptoms?
C30: Reference: Jarvis MJ. Why people smoke. BMJ 2004;328(7434):277-9. https://www.ncbi.nlm.nih.gov/pmc/articles/PMC324461/.
C31: Q15 | D31: What is the difference between a cigarette and NRT?
D32: NRT Delivers nicotine differently than cigarettes NRT helps to maintain nicotine levels in the blood, thereby reducing withdrawal from faster-acting nicotine delivery mechanisms such as cigarettes.1 Smoking delivers nicotine directly to the brain via the pulmonary system in 10-20 seconds.1 Nicotine from some NRT formats (e.g. transdermal patch) is more slowly absorbed, while NRT formats such as, gum, lozenges, inhaler, oral spray, have much quicker absorption through the oral mucosa, e.g. 60 seconds for oral spray.2 Slower release nicotine delivery mechanisms are less reinforcing because1: • Nicotine levels wane off rather than plunging to trigger withdrawal symptoms • The user has less control with the dose to receive a rewarding effect when desired References: 1. Flowers L. Nicotine Replacement Therapy. Am J Psychiatry https://psychiatryonline.org/doi/full/10.1176/appi.ajp-rj.2016.110602. 2. Instructions for Use, Package Insert, Nicorette Oral Spray, Data on File, Johnson & Johnson Inc.
C33: Q16 | D33: How can I connect with a J&J representative for tools, resources, questions and coupons?
C34: Please email J&J Smoking Cessation at: smoking_cessation@its.jnj.com.
C35: Q17 | D35: Where can I get information on how to use each of the NRT formats/product offerings?
C36: Please see the Product Offering tab in this tool for more information. For more information visit: www.HelpThemQuit.ca

Sheet About this Tool
A1: About this Tool
D3: Heather Hadden B Sc Phm R Phm Primary Care Pharmacist | F3: This tool was authored by Heather Hadden B Sc Phm R Phm for Johnson & Johnson Consumer Health.
F4: Heather Hadden has a wealth of experience as a hospital pharmacist and a primary health care team pharmacist. After gradating from the University of Toronto she completed a Hospital Pharmacy Residency at Women’s College Hospital where she continued to work for several years before joining the Credit Valley Hospital for almost 20 years. She has since worked in primary care for over 13 years first at The Credit Valley Family Health Team and more recently helped to implement CarePoint Health, an Inter-Professional Care Team (IPCT) in Mississauga She has certifications in smoking cessation (TEACH Certified; OMSC, STOP) , palliative care, CBT-insomnia, memory clinics, and osteoporosis, She is one of the Ontario VP’s for Pharmacist for a Smoke Free Canada as well as a preceptor for the U of T 4th year APPE students, Pharm D for Pharmacist program, Hospital Residency program and a Coach and Mentor for Hospital and Primary Care Pharmacists at the Ontario College of Pharmacists. She is a University of Toronto Preceptor of the Year award recipient for Pharmacy students and most recently the 2021 University of Toronto Arbor Award recipient. She is a member and founder of a number of pharmacy and health profession associations.
D5: Maeryl Sumagang Doctor of Pharmacy (PharmD) Candidate | F5: This tool was developed through support by Maeryl Sumagang for Johnson & Johnson Consumer Health.
F6: Maeryl Sumagang completed her Bachelors degree in pharmacology and global health in 2018 and is completing her Doctor of Pharmacy (PharmD) degree and Certificate in Global Studies in Pharmacy from the University of Toronto in 2022. Aside from her love for pediatric practice, she has a strong interest in global health with the goal of providing patient-centered care to marginalized individuals and those of lower socioeconomic status both locally and on a global scale. After she graduates, she is pursuing her hospital residency at the Hospital for Sick Children in Toronto, Ontario.
D7: Chris Oliveiro Pharm.D. R.Ph. CDE Retail Pharmacist | F7: This tool was reviewed by Chris Oliveiro for Johnson & Johnson Consumer Health.
F8: Chris Oliveiro graduated from the University of Toronto with a Bachelor of Science in Pharmacy degree. He started his career as a pharmacist working for Shoppers Drug Mart and later became Pharmacist-owner of 2 Shoppers Drug Mart stores in Mississauga. In 1995, Chris opened Springdale Pharmacy, an independent pharmacy in Brampton, Ontario. Today, he also owns and operates a second pharmacy, James Potter Road Pharmacy, also in Brampton. In 2016, Chris graduated with high honors from the University of Florida with a Pharm.D degree. He was also the recipient of the Outstanding Leadership Award in his graduating class. Chris is also a Certified Diabetes Educator and practices as a Clinical Pharmacist working closely with the doctors nearby his 2 stores to educate patients on diabetes and other diseases. As a Certified Diabetes Educator, Chris was shocked to learn that many of his patients with diabetes smoke tobacco. He became smoking-cessation certified and has a proven success record in helping many of his patients break the habit. He is an active member and a Vice-President of Pharmacists For A Smoke-Free Canada (PSFC). His wish for Ontario is to have a smoking cessation certified pharmacist available in all pharmacies.

Sheet Information (hidden)
A1: BRAND AND SIZE | B1: PRICE PER PACK (C$) | C1: # CIGS PER PACK | E1: Yearly expense | F1: Years | H1: Store | I1: Price Step 1 (14) | K1: Store | L1: Price Step 1 (7) | N1: Store | O1: Price Step 2 (7) | Q1: Store | R1: Price Step 3 (7) | T1: Store | U1: Price Gum 4mg (105) | W1: Store | X1: Price Gum 2mg (105) | Z1: Store | AA1: Price Lozenge 4mg (88) | AC1: Store | AD1: Price Lozenge 2mg (88) | AF1: Store | AG1: Price Inhaler 4mg (42) | AI1: Store | AJ1: Price Quickmist (150)
A2: Patient unsure of costs | B2: 0 | C2: 20 | E2: =Results!C10*1 ->  | F2: 1 | H2: Click here for drop-down options | I2: 0 | K2: Click here for drop-down options | L2: 0 | N2: Click here for drop-down options | O2: 0 | Q2: Click here for drop-down options | R2: 0 | T2: Click here for drop-down options | U2: 0 | W2: Click here for drop-down options | X2: 0 | Z2: Click here for drop-down options | AA2: 0 | AC2: Click here for drop-down options | AD2: 0 | AF2: Click here for drop-down options | AG2: 0 | AI2: Click here for drop-down options | AJ2: 0
A3: Premium 25 (one pack) | B3: 19.78 | C3: 25 | E3: =Results!C10*2 ->  | F3: 2 | H3: Amazon | I3: 48.8 | K3: Amazon | L3: 28.97 | N3: Amazon | O3: 29.45 | Q3: Guardian/I.D.A./Remedy'sRx | R3: 34.99 | T3: Amazon | U3: 33.97 | W3: Amazon | X3: 33.97 | Z3: Independent Pharmacy | AA3: 53.19 | AC3: Independent Pharmacy | AD3: 53.19 | AF3: Amazon | AG3: 33.97 | AI3: Amazon | AJ3: 29.97
A4: Premium 25 (two packs) | B4: 33.62 | C4: 50 | E4: =Results!C10*3 ->  | F4: 3 | H4: Guardian/I.D.A./Remedy'sRx | I4: 64.99 | K4: Guardian/I.D.A./Remedy'sRx | L4: 34.99 | N4: Guardian/I.D.A./Remedy'sRx | O4: 34.99 | Q4: Guardian/I.D.A./Remedy'sRx + Seniors' Day Discount (-20%) | R4: 27.99 | T4: Guardian/I.D.A./Remedy'sRx | U4: 39.99 | W4: Guardian/I.D.A./Remedy'sRx | X4: 39.99 | Z4: Pharmasave | AA4: 42.99 | AC4: Pharmasave | AD4: 47.99 | AF4: Guardian/I.D.A./Remedy'sRx | AG4: 39.99 | AI4: Guardian/I.D.A./Remedy'sRx | AJ4: 39.99
A5: Premium 25 (three packs) | B5: 42.375 | C5: 75 | E5: =Results!C10*4 ->  | F5: 4 | H5: Guardian/I.D.A./Remedy'sRx + Seniors' Day Discount (-20%) | I5: 51.99 | K5: Guardian/I.D.A./Remedy'sRx + Seniors' Day Discount (-20%) | L5: 27.99 | N5: Guardian/I.D.A./Remedy'sRx + Seniors' Day Discount (-20%) | O5: 27.99 | Q5: Independent Pharmacy | R5: 29.99 | T5: Guardian/I.D.A./Remedy'sRx + Seniors' Day Discount (-20%) | U5: 31.99 | W5: Guardian/I.D.A./Remedy'sRx + Seniors' Day Discount (-20%) | X5: 31.99 | Z5: Rexall | AA5: 43.99 | AC5: Rexall | AD5: 43.99 | AF5: Guardian/I.D.A./Remedy'sRx + Seniors' Day Discount (-20%) | AG5: 31.99 | AI5: Guardian/I.D.A./Remedy'sRx + Seniors' Day Discount (-20%) | AJ5: 31.99
A6: Premium 20 (one pack) | B6: 15.42 | C6: 20 | E6: =Results!C10*5 ->  | F6: 5 | H6: Independent Pharmacy | I6: 59.98 | K6: Independent Pharmacy | L6: 29.99 | N6: Independent Pharmacy | O6: 29.99 | Q6: Loblaws | R6: 31.99 | T6: Independent Pharmacy | U6: 54.39 | W6: Independent Pharmacy | X6: 54.39 | Z6: Rexall + Seniors' Day Discount (-20%) | AA6: 35.19 | AC6: Rexall + Seniors' Day Discount (-20%) | AD6: 35.19 | AF6: Independent Pharmacy | AG6: 49 | AI6: Independent Pharmacy | AJ6: 49
A7: Premium 20 (two packs) | B7: 28.54 | C7: 40 | E7: =Results!C10*6 ->  | F7: 6 | H7: Loblaws | I7: 59.99 | K7: Loblaws | L7: 31.99 | N7: Loblaws | O7: 31.99 | Q7: Pharmasave | R7: 34.99 | T7: Loblaws | U7: 37.99 | W7: Loblaws | X7: 37.99 | Z7: Shoppers Drug Mart (SDM) | AA7: 46.99 | AC7: Shoppers Drug Mart (SDM) | AD7: 41.99 | AF7: Loblaws | AG7: 37.99 | AI7: Loblaws | AJ7: 37.99
A8: Non Premium 25 (one pack) | B8: 14.633 | C8: 25 | E8: =Results!C10*7 ->  | F8: 7 | H8: Pharmasave | I8: 63.99 | K8: Pharmasave | L8: 35.99 | N8: Pharmasave | O8: 34.99 | Q8: Real Canadian Superstore | R8: 31.98 | T8: Pharmasave | U8: 42.99 | W8: Pharmasave | X8: 42.99 | Z8: SDM + Seniors' Day Discount (-20%) | AA8: 37.59 | AC8: SDM + Seniors' Day Discount (-20%) | AD8: 33.59 | AF8: Pharmasave | AG8: 44.99 | AI8: Pharmasave | AJ8: 43.99
A9: Non Premium 25 (two packs) | B9: 28.728 | C9: 50 | E9: =Results!C10*8 ->  | F9: 8 | H9: Real Canadian Superstore | I9: 54.98 | K9: Real Canadian Superstore | L9: 31.98 | N9: Real Canadian Superstore | O9: 31.98 | Q9: Rexall | R9: 40.49 | T9: Real Canadian Superstore | U9: 35.98 | W9: Real Canadian Superstore | X9: 35.98 | Z9: Walmart | AA9: 33.97 | AC9: Walmart | AD9: 33.97 | AF9: Real Canadian Superstore | AG9: 35.98 | AI9: Real Canadian Superstore | AJ9: 35.98
A10: Non Premium 20 (one pack) | B10: 12.4865 | C10: 20 | E10: =Results!C10*9 ->  | F10: 9 | H10: Rexall | I10: 82.99 | K10: Rexall | L10: 40.49 | N10: Rexall | O10: 40.49 | Q10: Rexall + Seniors' Day Discount (-20%) | R10: 32.39 | T10: Rexall | U10: 52.99 | W10: Rexall | X10: 46.99 | AF10: Rexall | AG10: 48.99 | AI10: Rexall | AJ10: 49.99
A11: Non Premium 20 (two packs) | B11: 24.52 | C11: 40 | E11: =Results!C10*10 ->  | F11: 10 | H11: Rexall + Seniors' Day Discount (-20%) | I11: 66.39 | K11: Rexall + Seniors' Day Discount (-20%) | L11: 32.39 | N11: Rexall + Seniors' Day Discount (-20%) | O11: 32.39 | Q11: Shoppers Drug Mart (SDM) | R11: 34.99 | T11: Rexall + Seniors' Day Discount (-20%) | U11: 42.39 | W11: Rexall + Seniors' Day Discount (-20%) | X11: 37.59 | AF11: Rexall + Seniors' Day Discount (-20%) | AG11: 39.19 | AI11: Rexall + Seniors' Day Discount (-20%) | AJ11: 39.99
A12: Carton of 20's (200/carton) | B12: 138.99 | C12: 200 | H12: Shoppers Drug Mart (SDM) | I12: 62.99 | K12: Shoppers Drug Mart (SDM) | L12: 34.99 | N12: Shoppers Drug Mart (SDM) | O12: 34.99 | Q12: SDM + Seniors' Day Discount (-20%) | R12: 27.99 | T12: Shoppers Drug Mart (SDM) | U12: 46.99 | W12: Shoppers Drug Mart (SDM) | X12: 41.99 | AF12: Shoppers Drug Mart (SDM) | AG12: 43.99 | AI12: Shoppers Drug Mart (SDM) | AJ12: 43.99
A13: Carton of 25's (200/carton) | B13: 124.3 | C13: 200 | H13: SDM + Seniors' Day Discount (-20%) | I13: 50.39 | K13: SDM + Seniors' Day Discount (-20%) | L13: 27.99 | N13: SDM + Seniors' Day Discount (-20%) | O13: 27.99 | Q13: Walmart | R13: 27.97 | T13: SDM + Seniors' Day Discount (-20%) | U13: 37.59 | W13: SDM + Seniors' Day Discount (-20%) | X13: 33.59 | AF13: SDM + Seniors' Day Discount (-20%) | AG13: 35.19 | AI13: SDM + Seniors' Day Discount (-20%) | AJ13: 35.19
H14: Walmart | I14: 52.97 | K14: Walmart | L14: 28.97 | N14: Walmart | O14: 27.97 | T14: Walmart | U14: 33.97 | W14: Walmart | X14: 33.97 | AF14: Walmart | AG14: 33.97 | AI14: Walmart | AJ14: 33.97
E16: Net Cost Savings Using NRT | F16: Years
E17: =Results!C10-Results!C37 ->  | F17: 1
E18: =SUM(E17,Results!C10) ->  | F18: 2 | H18: Store | I18: Price Step 1 (21) | T18: Store | U18: Price Gum 4mg (315) | W18: Store | X18: Price Gum 2mg (315) | AI18: Store | AJ18: Price Quickmist (450)
A19: Minus Amazon/Costco | E19: =SUM(E18,Results!C10) ->  | F19: 3 | H19: Click here for drop-down options | I19: 0 | T19: Click here for drop-down options | U19: 0 | W19: Click here for drop-down options | X19: 0 | AI19: Click here for drop-down options | AJ19: 0
A20: =IF(OR('Step 3 Cost of NRT'!C21="Amazon",'Step 3 Cost of NRT'!C21="Costco"),0,'Step 3 Cost of NRT'!G21) -> 0 | E20: =SUM(E19,Results!C10) ->  | F20: 4 | H20: Costco | I20: 67.99 | T20: Costco | U20: 79.99 | W20: Costco | X20: 79.99 | AI20: Costco | AJ20: 79.99
A21: =IF(OR('Step 3 Cost of NRT'!C22="Amazon",'Step 3 Cost of NRT'!C22="Costco"),0,'Step 3 Cost of NRT'!G22) -> 0 | E21: =SUM(E20,Results!C10) ->  | F21: 5
A22: =IF(OR('Step 3 Cost of NRT'!C23="Amazon",'Step 3 Cost of NRT'!C23="Costco"),0,'Step 3 Cost of NRT'!G23) -> 0 | E22: =SUM(E21,Results!C10) ->  | F22: 6
A23: =IF(OR('Step 3 Cost of NRT'!C24="Amazon",'Step 3 Cost of NRT'!C24="Costco"),0,'Step 3 Cost of NRT'!G24) -> 0 | E23: =SUM(E22,Results!C10) ->  | F23: 7
A24: =IF(OR('Step 3 Cost of NRT'!C25="Amazon",'Step 3 Cost of NRT'!C25="Costco"),0,'Step 3 Cost of NRT'!G25) -> 0 | E24: =SUM(E23,Results!C10) ->  | F24: 8
A25: =IF(OR('Step 3 Cost of NRT'!C26="Amazon",'Step 3 Cost of NRT'!C26="Costco"),0,'Step 3 Cost of NRT'!G26) -> 0 | E25: =SUM(E24,Results!C10) ->  | F25: 9
A26: =IF(OR('Step 3 Cost of NRT'!C27="Amazon",'Step 3 Cost of NRT'!C27="Costco"),0,'Step 3 Cost of NRT'!G27) -> 0 | E26: =SUM(E25,Results!C10) ->  | F26: 10
A27: =IF(OR('Step 3 Cost of NRT'!C28="Amazon",'Step 3 Cost of NRT'!C28="Costco"),0,'Step 3 Cost of NRT'!G28) -> 0
A28: =IF(OR('Step 3 Cost of NRT'!C29="Amazon",'Step 3 Cost of NRT'!C29="Costco"),0,'Step 3 Cost of NRT'!G29) -> 0
A29: =IF(OR('Step 3 Cost of NRT'!C30="Amazon",'Step 3 Cost of NRT'!C30="Costco"),0,'Step 3 Cost of NRT'!G30) -> 0
A30: =IF(OR('Step 3 Cost of NRT'!C31="Amazon",'Step 3 Cost of NRT'!C31="Costco"),0,'Step 3 Cost of NRT'!G31) -> 0 | I30: Cost of Smoking | J30: Cost of NRT
A31: =IF(OR('Step 3 Cost of NRT'!C32="Amazon",'Step 3 Cost of NRT'!C32="Costco"),0,'Step 3 Cost of NRT'!G32) -> 0 | E31: Cigs Purchased | H31: 1 Month | I31: =Results!C9 ->  | J31: ='Step 3 Cost of NRT'!H45*(1/3) -> 81.33363333
A32: =IF(OR('Step 3 Cost of NRT'!C33="Amazon",'Step 3 Cost of NRT'!C33="Costco"),0,'Step 3 Cost of NRT'!G33) -> 0 | E32: 20 | H32: 2 Months | I32: =I31*2 ->  | J32: ='Step 3 Cost of NRT'!H45*(2/3) -> 162.6672667
A33: =IF(OR('Step 3 Cost of NRT'!C34="Amazon",'Step 3 Cost of NRT'!C34="Costco"),0,'Step 3 Cost of NRT'!G34) -> 0 | E33: 25 | H33: 3 Months | I33: =I31*3 ->  | J33: ='Step 3 Cost of NRT'!H45 -> 244.0009
A34: =IF(OR('Step 3 Cost of NRT'!C35="Amazon",'Step 3 Cost of NRT'!C35="Costco"),0,'Step 3 Cost of NRT'!G35) -> 0 | E34: 40 | H34: 6 Months | I34: =I35/2 ->  | J34: 0
A35: =IF(OR('Step 3 Cost of NRT'!C36="Amazon",'Step 3 Cost of NRT'!C36="Costco"),0,'Step 3 Cost of NRT'!G36) -> 0 | E35: 50 | H35: 12 Months | I35: =Results!C10 ->  | J35: 0
A36: =IF(OR('Step 3 Cost of NRT'!C37="Amazon",'Step 3 Cost of NRT'!C37="Costco"),0,'Step 3 Cost of NRT'!G37) -> 0 | E36: 75
A37: =IF(OR('Step 3 Cost of NRT'!C38="Amazon",'Step 3 Cost of NRT'!C38="Costco"),0,'Step 3 Cost of NRT'!G38) -> 0 | E37: 160
E38: 200
A39: Sum of boxes minus Amazon/Costco:
A40: =SUM(A20:A37) -> 0
E41: Cost of smoking/month | F41: =Results!C9 -> 
E42: Cost of smoking per year | F42: ='Step 1 Smoking Costs'!D17 -> 
E43: Cost of NRT | F43: ='Step 3 Cost of NRT'!H45 -> 244.0009
A45: Province | B45: tax type | C45: PST | D45: GST | E45: HST | F45: Total tax rate
A46: Alberta | B46: GST | D46: 0.05 | F46: 0.05
A47: British Columbia | B47: GST + PST | C47: 0.07 | D47: 0.05 | F47: 0.12 | G47: More info
A48: Manitoba | B48: GST + PST | C48: 0.07 | D48: 0.05 | F48: 0.12 | G48: As of July 1, 2019 the PST rate was reduced from 8% to 7%.
A49: New Brunswick | B49: HST | E49: 0.15 | F49: 0.15 | G49: As of July 1, 2016 the HST rate increased from 13% to 15%.
A50: Newfoundland and Labrador | B50: HST | E50: 0.15 | F50: 0.15 | G50: As of July 1, 2016 the HST rate increased from 13% to 15%.
A51: Northwest Territories | B51: GST | D51: 0.05 | F51: 0.05
A52: Nova Scotia | B52: HST | E52: 0.15 | F52: 0.15
A53: Nunavut | B53: GST | D53: 0.05 | F53: 0.05
A54: Ontario | B54: HST | E54: 0.13 | F54: 0.13
A55: Prince Edward Island | B55: HST | E55: 0.15 | F55: 0.15
A56: Quebec | B56: GST + *QST | C56: *9.975% | D56: 0.05 | F56: 0.14975
A57: Saskatchewan | B57: GST + PST | C57: 0.06 | D57: 0.05 | F57: 0.11
A58: Yukon | B58: GST | D58: 0.05 | F58: 0.05
